bitfinex-derivatives/quotes_SOLF0:USTF0_20260114
["timestamp","ask_amount","ask_price","bid_price","bid_amount"]
[1768426296726,0.04737266,147.42,147.35,86.3075]
[1768426296925,0.04737266,147.42,147.35,89.4531075]
[1768426297824,6.15247266,147.42,147.37,0.04989114]
[1768426299024,0.04737266,147.42,147.37,0.04989114]
[1768426299229,0.04737266,147.42,147.37,3.19549864]
[1768426299430,3.22430748,147.5,147.38,3.1456075]
[1768426299824,6.1029,147.47,147.4,9.2514075]
[1768426300328,0.0430105,147.45,147.42,0.04790103]
[1768426301930,0.0430105,147.45,147.38,9.2518075]
[1768426302226,9.32770748,147.46,147.38,9.2518075]
[1768426302927,0.05037893,147.43,147.41,0.05013697]
[1768426307533,0.05037893,147.43,147.35,3.1456075]
[1768426307832,0.05037893,147.43,147.37,3.1456075]
[1768426308131,3.22430748,147.46,147.37,3.1456075]
[1768426308625,6.15090703,147.43,147.4,0.04576267]
[1768426308828,0.04620703,147.43,147.4,0.04576267]
[1768426309023,3.22430748,147.48,147.4,0.04576267]
[1768426309530,3.22430748,147.48,147.4,3.19137017]
[1768426309926,6.1469683,147.45,147.4,3.19137017]
[1768426316439,6.1041,147.44,147.4,3.19137017]
[1768426316931,6.1041,147.44,147.4,0.04576267]
[1768426320529,6.1046,147.43,147.4,0.04576267]
[1768426321736,0.0429683,147.45,147.4,3.35464862]
[1768426323643,6.1467683,147.45,147.4,3.35464862]
[1768426323831,0.0429683,147.45,147.4,0.04576267]
[1768426324330,6.1046,147.43,147.4,0.04576267]
[1768426324529,0.0429683,147.45,147.4,0.04576267]
[1768426324932,6.1043,147.44,147.4,0.04576267]
[1768426325130,3.26727578,147.45,147.35,83.46888595]
[1768426325330,3.22430748,147.45,147.35,83.46888595]
[1768426325543,98.18460748,147.43,147.33,83.46888595]
[1768426325736,98.18460748,147.43,147.34,3.30888595]
[1768426326137,94.9531,147.45,147.33,80.16]
[1768426326138,0.04662318,147.4,147.37,0.04351615]
[1768426327831,6.15252318,147.4,147.33,80.16]
[1768426328032,6.15252318,147.4,147.33,83.46888595]
[1768426328932,6.15252318,147.4,147.35,0.05143428]
[1768426332248,3.22430748,147.48,147.36,3.30888595]
[1768426332431,94.9346,147.47,147.36,3.30888595]
[1768426332632,3.22430748,147.46,147.36,3.30888595]
[1768426332838,3.22430748,147.46,147.36,83.46888595]
[1768426333235,0.04900217,147.42,147.4,0.04912077]
[1768426337442,0.04900217,147.42,147.36,89.57628595]
[1768426337645,0.04900217,147.42,147.37,3.30888595]
[1768426338449,0.04900217,147.42,147.38,0.04719828]
[1768426338650,6.1039,147.45,147.38,3.35608423]
[1768426339853,0.04915927,147.43,147.38,3.35608423]
[1768426344759,0.04915927,147.43,147.38,0.04719828]
[1768426345656,0.04915927,147.43,147.38,3.24070175]
[1768426345856,0.04915927,147.43,147.39,3.19350347]
[1768426364780,6.15375927,147.43,147.39,3.19350347]
[1768426379591,6.15375927,147.43,147.38,80.20719828]
[1768426379786,6.15375927,147.43,147.38,83.38138034]
[1768426381590,6.105,147.42,147.38,83.38138034]
[1768426382196,0.04915927,147.43,147.38,83.38138034]
[1768426383798,0.04915927,147.43,147.39,3.17418206]
[1768426384298,1.18082182,147.48,147.39,3.17418206]
[1768426384600,6.1028,147.48,147.42,2.06230044]
[1768426384801,6.1028,147.48,147.44,3.17418206]
[1768426385093,6.1028,147.48,147.43,66.16030689]
[1768426385298,6.103,147.47,147.43,63.36175201]
[1768426385500,0.04671357,147.47,147.44,0.04951307]
[1768426386903,6.1033,147.46,147.44,0.04951307]
[1768426388707,6.1033,147.46,147.4,3.17418206]
[1768426388897,6.1033,147.46,147.41,80.16]
[1768426389901,6.1033,147.46,147.42,0.04653366]
[1768426390705,6.1037,147.45,147.42,0.04653366]
[1768426391593,2.10901401,147.47,147.42,0.04653366]
[1768426391594,8.21231401,147.47,147.42,0.04653366]
[1768426396304,6.1033,147.46,147.42,0.04653366]
[1768426402104,2.10901401,147.47,147.4,3.17418206]
[1768426402706,6.1042,147.44,147.39,80.16]
[1768426403102,6.1042,147.44,147.39,83.17535365]
[1768426403306,0.0444373,147.43,147.4,0.04623933]
[1768426408013,0.0444373,147.43,147.33,83.17535365]
[1768426408312,98.1821437,147.44,147.34,3.01535365]
[1768426408809,6.1058,147.4,147.38,0.05004983]
[1768426409111,6.14946732,147.4,147.34,3.01535365]
[1768426410105,6.14946732,147.4,147.36,0.04695702]
[1768426417611,0.04366732,147.4,147.36,3.06231067]
[1768426419818,6.14946732,147.4,147.36,3.06231067]
[1768426427121,6.14946732,147.4,147.36,0.04695702]
[1768426427326,6.1063,147.39,147.34,3.01535365]
[1768426427719,0.04366732,147.4,147.33,80.16]
[1768426428022,0.04366732,147.4,147.32,3.01535365]
[1768426428528,0.04366732,147.4,147.35,0.04601973]
[1768426429921,6.1068,147.38,147.35,0.04601973]
[1768426432529,6.1068,147.38,147.32,3.01535365]
[1768426433432,0.04486067,147.36,147.34,0.05132182]
[1768426440035,6.15236067,147.36,147.34,0.05132182]
[1768426440233,6.15236067,147.36,147.32,3.01535365]
[1768426441234,6.15236067,147.36,147.33,0.05061305]
[1768426441826,0.04486067,147.36,147.33,0.05061305]
[1768426447043,0.04486067,147.36,147.29,80.18]
[1768426447247,0.04486067,147.36,147.3,3.10035624]
[1768426448134,0.04486067,147.36,147.33,3.10035624]
[1768426450844,0.04486067,147.36,147.32,0.04505519]
[1768426451147,3.2223437,147.42,147.32,3.14541143]
[1768426451349,3.2223437,147.42,147.32,3.10035624]
[1768426452245,0.04601621,147.38,147.36,0.04289495]
[1768426455154,0.04601621,147.38,147.3,3.10035624]
[1768426455347,6.1063,147.39,147.3,3.10035624]
[1768426456156,0.04507711,147.36,147.33,0.04476738]
[1768426474057,6.15267711,147.36,147.3,3.27598425]
[1768426474257,0.04507711,147.36,147.3,3.27598425]
[1768426475058,0.04507711,147.36,147.32,0.05151098]
[1768426487873,6.15257711,147.36,147.32,0.05151098]
[1768426488070,0.04507711,147.36,147.32,3.32749523]
[1768426496275,0.04507711,147.36,147.27,95.0604]
[1768426496276,2.98958481,147.33,147.21,2.06418707]
[1768426496477,5.05377188,147.32,147.22,80.2]
[1768426496676,2.98958481,147.31,147.22,80.2]
[1768426497275,2.98958481,147.31,147.25,0.05141065]
[1768426498176,2.98958481,147.31,147.25,3.2568965]
[1768426498373,0.04453844,147.29,147.25,3.2568965]
[1768426504285,11.16287188,147.32,147.25,3.2568965]
[1768426505283,0.0514511,147.3,147.25,3.2568965]
[1768426507588,9.15113591,147.3,147.25,0.05141065]
[1768426507887,11.21532298,147.3,147.25,0.05141065]
[1768426508185,11.21532298,147.3,147.26,80.22]
[1768426509587,11.21532298,147.3,147.25,0.05141065]
[1768426509887,11.21532298,147.3,147.26,80.22]
[1768426510386,9.15113591,147.3,147.26,80.22]
[1768426512090,0.0514511,147.3,147.26,83.42548585]
[1768426512385,2.06418707,147.33,147.27,3.20548585]
[1768426512785,5.10522298,147.33,147.27,3.20548585]
[1768426512983,6.1091,147.32,147.27,3.20548585]
[1768426513387,0.0460637,147.31,147.28,0.04359737]
[1768426516783,2.06418707,147.35,147.28,3.24908322]
[1768426516990,5.15128668,147.37,147.28,3.20548585]
[1768426517887,0.04289051,147.34,147.31,0.05026303]
[1768426518083,0.04289051,147.34,147.32,80.22]
[1768426519191,3.08709961,147.37,147.32,80.22]
[1768426519396,3.08709961,147.37,147.31,0.05026303]
[1768426519686,3.08709961,147.37,147.32,80.22]
[1768426520081,0.04871421,147.36,147.32,83.42548585]
[1768426520280,0.04871421,147.36,147.33,3.00188627]
[1768426524289,0.04871421,147.36,147.34,80.22]
[1768426526286,6.1062,147.4,147.34,83.24555679]
[1768426526585,6.1062,147.4,147.35,80.22]
[1768426526782,9.24153141,147.4,147.35,80.22]
[1768426527185,6.1062,147.39,147.36,68.9616]
[1768426527396,6.15627882,147.39,147.36,47.18227815]
[1768426527586,6.15627882,147.39,147.36,26.42207815]
[1768426529399,0.05007882,147.39,147.36,26.42207815]
[1768426532811,0.05007882,147.39,147.36,0.04747815]
[1768426536516,6.15627882,147.39,147.36,0.04747815]
[1768426536911,3.13533141,147.4,147.36,0.04747815]
[1768426537516,3.13533141,147.4,147.36,80.24747815]
[1768426537718,3.13533141,147.4,147.36,39.52242724]
[1768426537919,6.1062,147.39,147.36,39.52242724]
[1768426538619,6.14910868,147.39,147.36,39.57369542]
[1768426547624,6.14910868,147.39,147.36,0.05126818]
[1768426547927,6.14910868,147.39,147.36,3.07682497]
[1768426548119,3.13533141,147.42,147.36,3.07682497]
[1768426548120,6.1058,147.4,147.36,3.07682497]
[1768426549027,0.04537076,147.39,147.36,3.07682497]
[1768426559032,9.13733417,147.39,147.34,83.33816189]
[1768426559430,6.15157076,147.39,147.34,83.33816189]
[1768426559630,6.15157076,147.39,147.35,3.13816189]
[1768426560239,6.15157076,147.39,147.36,0.04955387]
[1768426560430,6.15157076,147.39,147.35,3.13816189]
[1768426560631,0.04537076,147.39,147.35,3.13816189]
[1768426561335,0.04537076,147.39,147.36,0.04299467]
[1768426561835,6.15157076,147.39,147.36,0.04299467]
[1768426562139,6.15157076,147.39,147.35,3.13816189]
[1768426562940,6.15157076,147.39,147.36,0.05154722]
[1768426568346,0.04537076,147.39,147.35,3.13816189]
[1768426568539,6.1067,147.38,147.31,80.2]
[1768426569354,0.04638877,147.36,147.33,0.04662814]
[1768426570446,0.04638877,147.36,147.33,3.18479003]
[1768426583475,9.09196341,147.39,147.33,3.18479003]
[1768426584472,0.05163859,147.37,147.33,3.18479003]
[1768426587269,3.21477695,147.37,147.33,0.04662814]
[1768426587664,0.05163859,147.37,147.33,0.04662814]
[1768426589873,0.05163859,147.37,147.33,80.24662814]
[1768426592170,0.05163859,147.37,147.33,83.22968702]
[1768426598475,0.05163859,147.37,147.34,80.2]
[1768426600282,0.05163859,147.37,147.34,63.01625373]
[1768426602883,0.05163859,147.37,147.33,83.22968702]
[1768426604384,0.05163859,147.37,147.34,2.98305888]
[1768426612690,0.05163859,147.37,147.34,83.18305888]
[1768426622494,3.16313836,147.39,147.34,83.18305888]
[1768426622806,4.29001118,147.42,147.35,2.99502846]
[1768426623094,3.1087284,147.41,147.35,2.99502846]
[1768426623692,0.05113219,147.39,147.37,0.04775362]
[1768426623897,0.05113219,147.39,147.35,2.99502846]
[1768426624895,0.05113219,147.39,147.36,3.04551127]
[1768426630499,0.05113219,147.39,147.31,6.1094]
[1768426630500,6.1067,147.38,147.33,2.99502846]
[1768426631606,6.1067,147.38,147.34,0.04623209]
[1768426632997,0.05113219,147.39,147.34,3.04126055]
[1768426636809,6.15743219,147.39,147.34,3.04126055]
[1768426642912,0.05113219,147.39,147.34,3.04126055]
[1768426643110,6.1057,147.41,147.34,3.04126055]
[1768426644104,0.05167981,147.39,147.34,3.04126055]
[1768426644811,9.18707525,147.43,147.35,3.06779218]
[1768426646007,0.04719366,147.4,147.38,0.04677633]
[1768426646206,0.04719366,147.4,147.37,3.06779218]
[1768426647206,0.04719366,147.4,147.37,3.11868471]
[1768426657123,0.04719366,147.4,147.37,0.05089253]
[1768426670835,0.04719366,147.4,147.3,80.18]
[1768426670836,3.30674472,147.38,147.3,80.18]
[1768426671634,3.30674472,147.38,147.33,0.04747844]
[1768426671635,0.04673978,147.35,147.33,0.04747844]
[1768426672733,0.04673978,147.35,147.33,3.11443379]
[1768426674736,9.41344472,147.38,147.33,3.11443379]
[1768426674943,6.1067,147.38,147.33,3.11443379]
[1768426675738,0.04593841,147.37,147.33,3.11443379]
[1768426680451,3.30674472,147.42,147.33,3.11443379]
[1768426680652,3.30674472,147.42,147.34,3.06695535]
[1768426681443,3.30674472,147.42,147.37,0.04299669]
[1768426681750,0.04403775,147.39,147.37,0.04299669]
[1768426682848,6.1044,147.44,147.37,3.10995204]
[1768426683051,3.30674472,147.45,147.37,3.10995204]
[1768426683755,9.41064472,147.45,147.37,3.10995204]
[1768426683944,0.04344405,147.42,147.37,3.10995204]
[1768426698358,0.04344405,147.42,147.38,3.06695535]
[1768426703059,1.18084186,147.48,147.38,3.06695535]
[1768426703060,4.4950935,147.48,147.38,3.06695535]
[1768426703261,3.31425164,147.48,147.41,3.06760188]
[1768426703473,3.31425164,147.5,147.41,3.06760188]
[1768426703858,3.31425164,147.5,147.42,6.1048]
[1768426704058,3.31425164,147.5,147.43,3.06760188]
[1768426704259,0.04696053,147.47,147.45,0.04948125]
[1768426705466,3.31425164,147.52,147.45,3.11708313]
[1768426708276,3.31425164,147.51,147.45,3.11708313]
[1768426709369,5.37508628,147.51,147.45,3.11708313]
[1768426710171,11.47638628,147.51,147.45,3.11708313]
[1768426710472,2.06083464,147.49,147.45,0.04948125]
[1768426713172,0.05161834,147.48,147.45,0.04948125]
[1768426714675,3.36586998,147.48,147.45,0.04948125]
[1768426714972,3.36586998,147.48,147.42,3.06760188]
[1768426715774,9.46856998,147.48,147.44,0.04795159]
[1768426716171,9.46856998,147.48,147.42,3.06760188]
[1768426717169,9.46856998,147.48,147.44,0.04435476]
[1768426717865,11.52940462,147.48,147.42,3.06760188]
[1768426719575,3.31425164,147.47,147.42,3.06760188]
[1768426720279,3.31425164,147.47,147.43,0.04739844]
[1768426720982,0.05161834,147.48,147.43,3.11500032]
[1768426726184,11.52920462,147.48,147.43,0.04739844]
[1768426727479,3.31425164,147.46,147.41,3.06760188]
[1768426727883,9.41755164,147.46,147.41,3.06760188]
[1768426728180,2.06083464,147.46,147.39,3.06760188]
[1768426728384,3.31425164,147.45,147.39,3.06760188]
[1768426728589,0.04347777,147.43,147.39,3.06760188]
[1768426728781,0.04347777,147.43,147.37,3.06760188]
[1768426732683,6.14807777,147.43,147.37,3.06760188]
[1768426733186,0.04347777,147.43,147.37,3.06760188]
[1768426734093,3.11429667,147.43,147.39,0.04825947]
[1768426734785,6.105,147.42,147.39,0.04825947]
[1768426735185,6.105,147.42,147.37,3.06760188]
[1768426736684,6.1054,147.41,147.35,3.18004139]
[1768426736884,0.04314359,147.39,147.37,0.05141522]
[1768426741988,3.0708189,147.42,147.37,3.23145661]
[1768426742792,6.1054,147.41,147.37,3.23145661]
[1768426742992,0.04497797,147.4,147.37,3.23145661]
[1768426760601,8.16563464,147.43,147.37,3.23145661]
[1768426761401,11.39590974,147.43,147.37,3.23145661]
[1768426761607,0.04714023,147.41,147.37,3.23145661]
[1768426768306,5.29110974,147.49,147.39,3.16208425]
[1768426768606,5.29110974,147.49,147.4,3.16208425]
[1768426769199,0.04518634,147.46,147.43,0.04747851]
[1768426772103,3.27546144,147.46,147.4,3.16208425]
[1768426773104,3.27546144,147.46,147.42,0.05198372]
[1768426773809,9.37886144,147.46,147.42,0.05198372]
[1768426774202,9.37886144,147.46,147.4,3.16208425]
[1768426774998,9.37886144,147.46,146.4,860.82966634]
[1768426774999,3.2302751,147.42,147.3,3.16208425]
[1768426775208,0.05017693,147.37,147.35,0.05095981]
[1768426775409,0.04644092,147.37,147.35,0.04428044]
[1768426778712,0.04644092,147.37,147.31,3.16208425]
[1768426779814,0.04644092,147.37,147.3,80.16]
[1768426779815,3.2302751,147.36,147.3,80.16]
[1768426780016,3.2302751,147.36,147.3,83.32208425]
[1768426780911,6.108,147.35,147.32,0.04494046]
[1768426784912,6.108,147.35,147.3,3.16208425]
[1768426785917,0.05058381,147.34,147.31,0.02402226]
[1768426787723,3.28085891,147.34,147.31,0.02402226]
[1768426788025,3.28085891,147.34,147.28,3.16208425]
[1768426788829,3.2302751,147.33,147.27,3.16208425]
[1768426789826,9.3390751,147.33,147.27,3.16208425]
[1768426791739,9.26841261,147.32,147.26,80.18]
[1768426791931,0.04708211,147.3,147.26,83.2763143]
[1768426793133,0.04708211,147.3,147.27,3.0963143]
[1768426796339,9.26771261,147.34,147.27,3.0963143]
[1768426797444,0.04842676,147.32,147.29,0.04665141]
[1768426801648,0.04842676,147.32,147.29,3.14296571]
[1768426802549,9.26631261,147.37,147.29,3.14296571]
[1768426802848,9.26631261,147.37,147.29,3.0963143]
[1768426803641,6.1075,147.36,147.29,3.0963143]
[1768426803837,0.04984406,147.34,147.32,0.04727509]
[1768426804649,0.04984406,147.34,147.29,3.0963143]
[1768426805652,0.04984406,147.34,147.3,0.04775206]
[1768426807250,0.04984406,147.34,147.3,3.14406636]
[1768426829370,6.1074,147.37,147.3,3.14406636]
[1768426829562,9.18247518,147.37,147.3,3.0963143]
[1768426830366,9.18247518,147.37,147.32,0.0451003]
[1768426830565,0.04951095,147.35,147.32,0.0451003]
[1768426833474,6.15741095,147.35,147.3,3.0963143]
[1768426833676,9.23248613,147.35,147.3,3.0963143]
[1768426834472,9.23248613,147.35,147.31,0.05106722]
[1768426834966,6.1083,147.34,147.28,3.24679859]
[1768426835166,3.07507518,147.34,147.28,3.24679859]
[1768426836879,6.1087,147.33,147.28,3.24679859]
[1768426837080,0.04381319,147.32,147.28,3.24679859]
[1768426839979,5.13975877,147.36,147.28,3.24679859]
[1768426840581,3.07507518,147.35,147.28,3.24679859]
[1768426840783,3.07507518,147.35,147.29,3.24679859]
[1768426841285,0.04283718,147.33,147.31,0.04411157]
[1768426845190,0.04283718,147.33,147.29,3.24679859]
[1768426852994,94.9959,147.38,147.26,82.24468359]
[1768426852995,3.30933655,147.37,147.3,3.21447382]
[1768426854099,0.04813479,147.35,147.32,0.04444908]
[1768426857207,3.35747134,147.35,147.29,3.21447382]
[1768426861815,9.46547134,147.35,147.29,3.21447382]
[1768426867114,6.1084,147.34,147.29,3.21447382]
[1768426867314,9.41773655,147.34,147.29,3.21447382]
[1768426870114,6.1084,147.34,147.27,9.32567382]
[1768426870320,3.30933655,147.31,147.26,80.18]
[1768426871116,3.30933655,147.31,147.26,83.39447382]
[1768426873222,8.22375761,147.32,147.26,89.50607382]
[1768426874218,8.22375761,147.32,147.26,83.39447382]
[1768426874825,11.53309416,147.32,147.26,83.39447382]
[1768426878228,9.41903655,147.31,147.26,83.39447382]
[1768426880828,3.12913802,147.29,147.22,3.19411489]
[1768426881025,0.05083482,147.27,147.22,83.41411489]
[1768426882632,3.29666835,147.27,147.22,83.41411489]
[1768426883836,9.40786835,147.27,147.22,83.41411489]
[1768426885032,6.1116,147.26,147.22,80.22]
[1768426886037,3.29666835,147.27,147.2,3.30968995]
[1768426887837,9.40786835,147.27,147.2,3.30968995]
[1768426893736,9.40786835,147.27,147.21,3.30968995]
[1768426893737,6.16203482,147.27,147.21,3.30968995]
[1768426895142,9.40786835,147.27,147.21,3.30968995]
[1768426897243,9.40786835,147.27,147.19,80.22]
[1768426897244,3.24583353,147.26,147.19,80.22]
[1768426897541,0.05164206,147.24,147.19,83.52968995]
[1768426898042,0.05164206,147.24,147.2,3.30968995]
[1768426901737,0.05164206,147.24,147.19,80.22]
[1768426901931,0.05164206,147.24,147.19,83.52968995]
[1768426903847,6.16414206,147.24,147.19,83.52968995]
[1768426907749,6.16414206,147.24,147.19,3.30968995]
[1768426910549,6.1128,147.23,147.19,3.30968995]
[1768426912050,9.31775384,147.23,147.17,83.52231403]
[1768426912352,6.1133,147.22,147.17,83.52231403]
[1768426912543,3.20495384,147.23,147.13,23.61034064]
[1768426912544,0.05152287,147.21,147.15,3.26231403]
[1768426912947,6.16542287,147.21,147.15,3.26231403]
[1768426913853,6.16542287,147.21,147.16,3.26231403]
[1768426914747,9.37037671,147.21,147.16,3.26231403]
[1768426914948,6.1141,147.2,147.16,3.26231403]
[1768426917361,9.37017671,147.21,147.16,3.26231403]
[1768426919059,9.31905384,147.2,147.14,83.52231403]
[1768426919774,6.1145,147.19,147.14,83.52231403]
[1768426919973,0.04438737,147.18,147.14,83.52231403]
[1768426920368,0.04438737,147.18,147.14,3.26231403]
[1768426920972,9.36434121,147.18,147.12,3.26231403]
[1768426921178,3.24934121,147.18,147.12,3.26231403]
[1768426921977,6.1159,147.16,147.1,89.64011403]
[1768426922169,0.04713087,147.14,147.1,89.64011403]
[1768426923072,0.04713087,147.14,147.11,3.26231403]
[1768426923273,3.20495384,147.17,147.11,3.26231403]
[1768426924380,0.04429751,147.15,147.13,0.04297258]
[1768426927480,0.04429751,147.15,147.1,83.52231403]
[1768426928177,0.04429751,147.15,147.1,3.26231403]
[1768426929581,0.04429751,147.15,147.1,9.38041403]
[1768426934796,3.24925135,147.15,147.1,3.26231403]
[1768426935885,9.36545135,147.15,147.1,3.26231403]
[1768426936783,3.24925135,147.15,147.1,3.26231403]
[1768426939094,9.36545135,147.15,147.1,3.26231403]
[1768426942302,3.24925135,147.15,147.1,3.26231403]
[1768426943795,9.36545135,147.15,147.1,3.26231403]
[1768426945098,3.25833754,147.14,147.07,3.13274169]
[1768426945402,0.0440517,147.12,147.07,3.13274169]
[1768426946299,3.30238924,147.12,147.07,3.13274169]
[1768426946803,9.41988924,147.12,147.07,3.13274169]
[1768426947501,6.118,147.11,147.05,3.13274169]
[1768426948203,6.118,147.11,147.06,3.13274169]
[1768426954704,9.37633754,147.11,147.04,3.13274169]
[1768426954901,0.04607027,147.09,147.04,3.13274169]
[1768426956808,0.04607027,147.09,147.05,3.13274169]
[1768426961312,0.04607027,147.09,147.05,9.25304169]
[1768426962214,0.04607027,147.09,147.06,3.13274169]
[1768426962417,9.37633754,147.11,147.06,3.13274169]
[1768426963312,0.04473669,147.1,147.07,0.04575604]
[1768426969414,3.25833754,147.15,147.07,3.17849773]
[1768426969620,3.25833754,147.15,147.08,2.07161825]
[1768426969920,3.25833754,147.15,147.08,5.20435994]
[1768426970420,0.04736709,147.13,147.1,0.04431075]
[1768426972318,3.24619639,147.13,147.06,9.26232747]
[1768426972514,3.1988293,147.13,147.04,5.21404572]
[1768426972716,3.1988293,147.12,147.05,3.14242747]
[1768426972916,9.3162293,147.12,147.05,3.14242747]
[1768426973527,0.04706131,147.1,147.07,0.04932685]
[1768426974323,3.24589061,147.1,147.07,0.04932685]
[1768426974521,3.24589061,147.1,147.03,3.14242747]
[1768426975917,9.36419061,147.1,147.03,3.14242747]
[1768426976422,3.1988293,147.09,147.01,89.56422747]
[1768426976634,0.04359063,147.06,147.02,3.14242747]
[1768426983241,0.04359063,147.06,147.01,80.3]
[1768426983435,0.04359063,147.06,147.01,3.14242747]
[1768426986337,3.1988293,147.05,147.01,3.14242747]
[1768426986535,3.1988293,147.05,146.99,3.14242747]
[1768426986732,0.0452613,147.03,146.99,3.14242747]
[1768426996547,3.2440906,147.03,146.97,3.14242747]
[1768426997838,3.2440906,147.03,146.97,9.26602747]
[1768426998237,0.0452613,147.03,146.98,3.14242747]
[1768426998436,0.0452613,147.03,146.99,3.14242747]
[1768427002753,0.0452613,147.03,146.99,9.26512747]
[1768427003056,6.1202,147.06,147.0,3.16367858]
[1768427003950,0.05179759,147.04,147.0,3.16367858]
[1768427005653,0.05179759,147.04,147.0,9.28597858]
[1768427005858,6.1194,147.08,147.0,3.16367858]
[1768427006761,6.1194,147.08,147.01,6.122]
[1768427006963,0.04630711,147.05,147.03,0.05194439]
[1768427009854,6.1194,147.08,147.03,3.17098611]
[1768427010054,3.08944728,147.09,147.03,3.17098611]
[1768427010254,6.1186,147.1,147.03,3.17098611]
[1768427010455,9.20804728,147.1,147.03,3.17098611]
[1768427010762,9.20804728,147.1,147.04,3.11904172]
[1768427010962,0.04858131,147.08,147.04,3.11904172]
[1768427011448,2.07161825,147.11,147.05,3.11904172]
[1768427011652,9.20724728,147.12,147.05,3.11904172]
[1768427012557,0.04680246,147.1,147.07,3.16592857]
[1768427012760,3.08944728,147.14,147.07,3.16592857]
[1768427013072,5.16106553,147.16,147.07,3.16592857]
[1768427013250,5.16106553,147.16,147.09,3.11904172]
[1768427013562,3.08944728,147.16,147.09,3.11904172]
[1768427013760,0.04614394,147.14,147.11,0.05037363]
[1768427037680,3.12617813,147.14,147.07,9.36359087]
[1768427037881,3.08003419,147.14,147.07,9.36359087]
[1768427038269,3.08003419,147.14,147.08,3.24439087]
[1768427038676,0.04763157,147.12,147.1,0.04737917]
[1768427039778,0.04763157,147.12,147.08,3.24439087]
[1768427040781,0.04763157,147.12,147.09,0.04555583]
[1768427047580,3.12766576,147.12,147.05,9.36449087]
[1768427047785,3.08003419,147.12,147.06,3.24439087]
[1768427048586,0.04290287,147.1,147.08,0.04423439]
[1768427056583,3.12293706,147.1,147.04,6.1205]
[1768427056889,3.12293706,147.1,147.04,3.24439087]
[1768427057993,3.12293706,147.1,147.06,0.04410709]
[1768427070192,3.12293706,147.1,147.03,6.1208]
[1768427070397,3.08003419,147.1,147.03,6.1208]
[1768427070900,3.26243541,147.08,147.01,80.36]
[1768427071300,0.04551514,147.06,147.01,80.36]
[1768427071689,3.30795055,147.06,147.01,80.36]
[1768427071889,3.30795055,147.06,147.01,83.45275533]
[1768427072096,3.30795055,147.06,147.03,6.1211]
[1768427073101,3.30795055,147.06,147.01,6.1219]
[1768427073308,3.30795055,147.06,146.99,83.43275533]
[1768427074003,3.30795055,147.06,147.0,3.09275533]
[1768427075906,3.30795055,147.06,147.02,6.1215]
[1768427077708,3.26243541,147.09,147.03,9.21375533]
[1768427078307,3.26243541,147.09,147.03,3.09275533]
[1768427078812,0.04578144,147.07,147.05,0.04610731]
[1768427080005,3.26243541,147.09,147.05,0.04610731]
[1768427081106,0.05042323,147.08,147.05,0.04610731]
[1768427081803,2.07295195,147.1,147.05,6.16630731]
[1768427082006,3.26243541,147.11,147.05,6.16630731]
[1768427082206,3.26243541,147.11,147.05,3.13886264]
[1768427082604,3.26243541,147.11,147.06,6.1197]
[1768427082916,0.05026367,147.1,147.06,6.1197]
[1768427091832,0.05026367,147.1,147.05,3.13886264]
[1768427093933,0.05026367,147.1,147.05,9.25906264]
[1768427094527,3.16078391,147.13,147.06,3.05285017]
[1768427094727,8.18995195,147.14,147.06,3.05285017]
[1768427094928,11.35073586,147.14,147.06,3.05285017]
[1768427095730,0.04418675,147.11,147.09,0.04383647]
[1768427096630,3.16078391,147.14,147.09,0.04383647]
[1768427097436,0.05112454,147.13,147.09,0.04383647]
[1768427097733,0.05112454,147.13,147.09,6.16243647]
[1768427097933,0.05112454,147.13,147.09,9.21528664]
[1768427098834,0.05112454,147.13,147.1,6.1182]
[1768427101236,0.05112454,147.13,147.11,6.1176]
[1768427101439,3.16078391,147.16,147.11,6.1176]
[1768427102536,0.05090657,147.15,147.12,0.05104847]
[1768427103934,5.23373586,147.13,147.06,3.05285017]
[1768427104238,3.16078391,147.12,147.06,3.05285017]
[1768427104838,3.16078391,147.12,147.07,6.1192]
[1768427105038,0.0458045,147.1,147.08,0.0486675]
[1768427105235,3.16078391,147.12,147.0,3.05285017]
[1768427105433,95.1427,147.15,147.02,3.05285017]
[1768427105434,3.08364947,147.1,147.02,3.05285017]
[1768427106346,0.05107056,147.07,147.05,0.04566462]
[1768427106733,3.08364947,147.12,147.05,3.09851479]
[1768427106933,3.08364947,147.12,147.05,3.05285017]
[1768427107741,0.04323688,147.1,147.07,0.0521204]
[1768427113341,6.1173,147.13,147.07,3.10497057]
[1768427113544,11.27310142,147.15,147.07,3.10497057]
[1768427113948,3.08364947,147.14,147.07,3.10497057]
[1768427114547,3.08364947,147.14,147.07,9.22437057]
[1768427114548,0.04606971,147.12,147.07,9.22437057]
[1768427117049,0.04606971,147.12,147.07,3.10497057]
[1768427119651,3.08364947,147.11,147.07,0.0521204]
[1768427120451,9.20144947,147.11,147.07,0.0521204]
[1768427121048,0.04606971,147.12,147.07,0.0521204]
[1768427123555,6.16366971,147.12,147.07,0.0521204]
[1768427125745,0.04606971,147.12,147.07,3.30003191]
[1768427126350,0.04606971,147.12,147.08,9.36691151]